fUSD/lending_fUSD_20251201
["ID","MTS","AMOUNT","RATE_DAILY","PERIOD"]
[395298083,1764597033148,-150.0,0.00015449,2]
[395298085,1764597033158,-150.0,0.00015458,2]
[395298087,1764597033168,-150.0,0.00015458,2]
[395298089,1764597033177,-150.0,0.00015458,2]
[395298091,1764597033186,-150.0,0.0001546,2]
[395298092,1764597033196,-150.0,0.00015476,2]
[395298094,1764597033205,-150.0,0.00015476,2]
[395298097,1764597033215,-150.0,0.00015481,2]
[395298099,1764597033225,-150.0,0.00015486,2]
[395298101,1764597033233,-37.30887432,0.0001549,2]
[395298103,1764597033246,-112.69112568,0.0001549,2]
[395298105,1764597033256,-150.0,0.000155,2]
[395298107,1764597033265,-150.0,0.00015503,2]
[395298109,1764597033274,-150.0,0.00015514,2]
[395298111,1764597033283,-150.0,0.00015514,2]
[395298113,1764597033292,-150.0,0.00015514,2]
[395298115,1764597033301,-150.0,0.00015514,2]
[395298117,1764597033310,-500.0,0.00015521,2]
[395298119,1764597033319,-500.0,0.00015521,2]
[395298121,1764597033328,-150.0,0.00015524,2]
[395298123,1764597033339,-150.0,0.00015524,2]
[395298125,1764597033352,-150.0,0.0001553,2]
[395298127,1764597033361,-150.0,0.00015542,2]
[395298129,1764597033370,-150.0,0.00015546,2]
[395298130,1764597033379,-150.0,0.00015553,2]
[395298132,1764597033390,-1064.01,0.00015562,2]
[395298135,1764597033399,-150.0,0.00015567,2]
[395298137,1764597033408,-150.0,0.00015571,2]
[395298139,1764597033418,-150.0,0.00015571,2]
[395298141,1764597033427,-150.0,0.00015571,2]
[395298143,1764597033436,-150.0,0.00015571,2]
[395298145,1764597033446,-150.0,0.00015589,2]
[395298146,1764597033455,-150.0,0.00015599,2]
[395298148,1764597033464,-150.0,0.00015606,2]
[395298150,1764597033473,-150.0,0.0001561,2]
[395298152,1764597033482,-150.0,0.00015611,2]
[395298154,1764597033491,-150.0,0.00015618,2]
[395298156,1764597033501,-150.0,0.00015627,2]
[395298159,1764597033510,-150.0,0.00015627,2]
[395298161,1764597033519,-150.0,0.00015627,2]
[395298163,1764597033530,-150.0,0.00015627,2]
[395298165,1764597033539,-150.0,0.00015627,2]
[395298167,1764597033548,-150.0,0.00015632,2]
[395298169,1764597033557,-150.0,0.00015652,2]
[395298171,1764597033567,-150.0,0.00015653,2]
[395298172,1764597033575,-150.0,0.00015656,2]
[395298175,1764597033584,-83.29887432,0.00015659,2]
[395298178,1764597033607,-66.70112568,0.00015659,2]
[395298180,1764597033616,-150.0,0.00015665,2]
[395298182,1764597033625,-150.0,0.00015665,2]
[395298184,1764597033636,-150.0,0.00015675,2]
[395298186,1764597033645,-150.0,0.00015684,2]
[395298188,1764597033654,-150.0,0.00015684,2]
[395298190,1764597033663,-83.16406493,0.00015692,2]
[395298192,1764597033675,-66.83593507,0.00015692,2]
[395298194,1764597033684,-150.0,0.00015696,2]
[395298196,1764597033693,-150.0,0.00015712,2]
[395298198,1764597033702,-150.0,0.00015712,2]
[395298200,1764597033712,-150.0,0.00015712,2]
[395298202,1764597033721,-150.0,0.00015712,2]
[395298204,1764597033730,-150.0,0.00015718,2]
[395298205,1764597033739,-150.0,0.00015733,2]
[395298207,1764597033749,-150.0,0.00015739,2]
[395298209,1764597033758,-150.0,0.00015741,2]
[395298211,1764597033767,-150.0,0.00015741,2]
[395298213,1764597033776,-150.0,0.00015741,2]
[395298215,1764597033785,-150.0,0.00015741,2]
[395298217,1764597033794,-150.0,0.0001576,2]
[395298219,1764597033804,-150.0,0.00015761,2]
[395298221,1764597033813,-150.0,0.00015765,2]
[395298223,1764597033822,-150.0,0.00015769,2]
[395298225,1764597033832,-150.0,0.00015773,2]
[395298227,1764597033841,-221.49377174,0.00015779,2]
[395298229,1764597033850,-8628.86625224,0.00015779,2]
[395298231,1764597033859,-193.6250797,0.00015782,2]
[395298233,1764597033868,-150.0,0.00015782,2]
[395298235,1764597033877,-150.0,0.00015797,2]
[395298237,1764597033886,-150.0,0.00015797,2]
[395298239,1764597033895,-150.0,0.00015797,2]
[395298241,1764597033904,-150.0,0.00015804,2]
[395298243,1764597033913,-150.0,0.00015807,2]
[395298245,1764597033923,-150.0,0.00015813,2]
[395298247,1764597033932,-150.0,0.00015818,2]
[395298248,1764597033942,-150.0,0.00015825,2]
[395298250,1764597033952,-32.85927146,0.00015826,2]
[395298253,1764597033967,-117.14072854,0.00015826,2]
[395298255,1764597033976,-200.96375849,0.00015836,2]
[395298257,1764597033987,-863.04624151,0.00015836,2]
[395298259,1764597033996,-150.0,0.00015847,2]
[395298261,1764597034006,-150.0,0.00015854,2]
[395298263,1764597034016,-32.93656304,0.00015854,2]
[395298266,1764597034031,-117.06343696,0.00015854,2]
[395298268,1764597034040,-150.0,0.00015854,2]
[395298270,1764597034050,-150.0,0.00015854,2]
[395298272,1764597034060,-150.0,0.00015854,2]
[395298274,1764597034069,-150.0,0.00015854,2]
[395298276,1764597034078,-150.0,0.00015854,2]
[395298278,1764597034087,-150.0,0.00015854,2]
[395298280,1764597034096,-150.0,0.00015868,2]
[395298281,1764597034105,-150.0,0.00015872,2]
[395298283,1764597034114,-5454.6819472,0.00015873,2]
[395298286,1764597034125,-641.28142672,0.00015873,2]
[395298288,1764597034136,-294.21925893,0.00015873,2]
[395298290,1764597034147,-522.04790989,0.00015873,2]
[395298292,1764597034157,-864.08449454,0.00015873,2]
[395298295,1764597034175,-41428.78290757,0.00015873,2]
[395298297,1764597034185,-418.24853192,0.00015873,2]
[395298299,1764597034196,-1717.93934583,0.00015873,2]
[395298630,1764597037518,-259.30223959,0.00015519,2]
[395298632,1764597037529,-240.69776041,0.00015519,2]
[395298634,1764597037539,-500.0,0.00015519,2]
[395298636,1764597037548,-500.0,0.00015519,2]
[395298638,1764597037557,-500.0,0.00015519,2]
[395298640,1764597037567,-416.65226962,0.00015519,2]
[395298642,1764597037575,-581.92610516,0.00015873,2]
[395298667,1764597037795,-494.68375629,0.00015873,2]
[395298671,1764597037820,-10892.00591625,0.00015873,2]
[395298673,1764597037831,-1079.25065904,0.00015873,2]
[395298675,1764597037842,-284.71437423,0.00015873,2]
[395298677,1764597037854,-1268.07707167,0.00015873,2]
[395298925,1764597040363,-32310.18634,0.00015873,2]
[395298927,1764597040374,-381.07102406,0.00015873,2]
[395298929,1764597040386,-349.16189937,0.00015873,2]
[395298933,1764597040416,-3898.12139962,0.00015873,2]
[395298936,1764597040433,-657119.51563171,0.00015873,2]
[395298938,1764597040442,-4085.6031,0.00015873,2]
[395298940,1764597040451,-384.74228427,0.00015879,2]
[395298942,1764597040461,-150.0,0.00015882,2]
[395298944,1764597040470,-150.0,0.0001589,2]
[395298947,1764597040490,-150.0,0.00015894,2]
[395298949,1764597040499,-420.67848745,0.000159,2]
[395298951,1764597040508,-420.67848745,0.000159,2]
[395298953,1764597040518,-150.0,0.00015901,2]
[395298955,1764597040528,-8628.86625216,0.00015904,2]
[395298957,1764597040537,-150.0,0.00015911,2]
[395298959,1764597040547,-150.0,0.00015911,2]
[395298961,1764597040556,-150.0,0.00015911,2]
[395298963,1764597040565,-150.0,0.00015925,2]
[395298965,1764597040575,-150.0,0.00015933,2]
[395298967,1764597040584,-150.0,0.00015935,2]
[395298969,1764597040594,-150.0,0.00015939,2]
[395298971,1764597040603,-150.0,0.00015948,2]
[395298973,1764597040613,-150.0,0.00015954,2]
[395298975,1764597040623,-151.0,0.00015963,2]
[395298978,1764597040632,-151.0,0.00015963,2]
[395298979,1764597040642,-151.0,0.00015963,2]
[395298981,1764597040651,-151.0,0.00015963,2]
[395298983,1764597040660,-151.0,0.00015963,2]
[395298985,1764597040670,-151.0,0.00015963,2]
[395298987,1764597040679,-151.0,0.00015963,2]
[395298990,1764597040689,-200.0,0.00015963,2]
[395298991,1764597040698,-151.0,0.00015963,2]
[395298993,1764597040708,-151.0,0.00015963,2]
[395298995,1764597040717,-151.0,0.00015963,2]
[395298997,1764597040727,-151.0,0.00015963,2]
[395298999,1764597040735,-151.0,0.00015963,2]
[395299001,1764597040745,-171.68040779,0.00015963,2]
[395299003,1764597040754,-500.0,0.00015963,2]
[395299005,1764597040763,-500.0,0.00015963,2]
[395299007,1764597040772,-500.0,0.00015963,2]
[395299009,1764597040781,-500.0,0.00015963,2]
[395299011,1764597040791,-200.0,0.00015963,2]
[395299013,1764597040799,-500.0,0.00015963,2]
[395299015,1764597040808,-500.0,0.00015963,2]
[395299017,1764597040818,-500.0,0.00015963,2]
[395299019,1764597040827,-200.0,0.00015963,2]
[395299022,1764597040841,-500.0,0.00015963,2]
[395299024,1764597040850,-150.0,0.00015967,2]
[395299026,1764597040860,-150.0,0.00015967,2]
[395299028,1764597040870,-150.0,0.00015967,2]
[395299030,1764597040880,-150.0,0.00015967,2]
[395299032,1764597040889,-150.0,0.00015967,2]
[395299034,1764597040899,-500.0,0.00015973,2]
[395299036,1764597040909,-161.77823091,0.00015973,2]
[395299038,1764597040920,-500.0,0.00015973,2]
[395299040,1764597040930,-500.0,0.00015973,2]
[395299042,1764597040939,-503.03874905,0.00015973,2]
[395299044,1764597040949,-500.0,0.00015973,2]
[395299047,1764597040959,-160.03289921,0.00015973,2]
[395299048,1764597040968,-195.29710924,0.00015973,2]
[395299051,1764597040978,-500.0,0.00015973,2]
[395299053,1764597040987,-500.0,0.00015973,2]
[395299055,1764597040996,-500.0,0.00015973,2]
[395299108,1764597041545,-500.0,0.00015973,2]
[395299110,1764597041555,-500.0,0.00015973,2]
[395299112,1764597041565,-500.0,0.00015973,2]
[395299114,1764597041574,-500.0,0.00015973,2]
[395299116,1764597041583,-500.0,0.00015973,2]
[395299119,1764597041592,-500.0,0.00015973,2]
[395299121,1764597041603,-500.0,0.00015973,2]
[395299123,1764597041612,-500.0,0.00015973,2]
[395299125,1764597041621,-500.0,0.00015973,2]
[395299127,1764597041631,-500.0,0.00015973,2]
[395299129,1764597041640,-502.43978726,0.00015973,2]
[395299131,1764597041649,-165.06363794,0.00015973,2]
[395299133,1764597041658,-500.0,0.00015973,2]
[395299135,1764597041667,-570.07624851,0.00015973,2]
[395299137,1764597041677,-150.0,0.00015975,2]
[395299139,1764597041686,-150.0,0.00015976,2]
[395299141,1764597041695,-150.0,0.00015978,2]
[395299143,1764597041705,-250.72,0.00015991,2]
[395299145,1764597041714,-150.0,0.00015995,2]
[395299147,1764597041723,-150.0,0.00015995,2]
[395299149,1764597041733,-150.0,0.00015997,2]
[395299151,1764597041741,-500.0,0.00015999,2]
[395299153,1764597041750,-500.0,0.00015999,2]
[395299155,1764597041759,-500.0,0.00015999,2]
[395299157,1764597041769,-500.0,0.00015999,2]
[395299159,1764597041778,-500.0,0.00015999,2]
[395299161,1764597041787,-500.0,0.00015999,2]
[395299163,1764597041800,-500.0,0.00015999,2]
[395299165,1764597041808,-600.0,0.00016,2]
[395299168,1764597041818,-280.8878,0.00016,2]
[395299170,1764597041828,-979.0054,0.00016,2]
[395299172,1764597041837,-3822.6793,0.00016,2]
[395299174,1764597041847,-235.3283,0.00016,2]
[395299176,1764597041858,-1281.06890794,0.00016005,2]
[395299178,1764597041867,-150.0,0.00016016,2]
[395299180,1764597041878,-150.0,0.00016019,2]
[395299182,1764597041887,-150.0,0.00016024,2]
[395299184,1764597041896,-150.0,0.00016024,2]
[395299186,1764597041905,-8628.86625216,0.00016028,2]
[395299188,1764597041914,-150.0,0.00016031,2]
[395299190,1764597041923,-150.0,0.0001604,2]
[395299192,1764597041932,-150.0,0.00016043,2]
[395299194,1764597041941,-150.0,0.00016043,2]
[395299196,1764597041950,-150.0,0.00016052,2]
[395299198,1764597041960,-151.0,0.00016056,2]
[395299200,1764597041969,-500.0,0.00016056,2]
[395299202,1764597041978,-151.0,0.00016056,2]
[395299203,1764597041987,-500.0,0.00016056,2]
[395299206,1764597041999,-500.0,0.00016056,2]
[395299208,1764597042008,-500.0,0.00016056,2]
[395299210,1764597042017,-500.0,0.00016056,2]
[395299212,1764597042026,-500.0,0.00016056,2]
[395299214,1764597042035,-514.84070869,0.00016056,2]
[395299216,1764597042044,-500.0,0.00016056,2]
[395299218,1764597042053,-500.0,0.00016056,2]
[395299220,1764597042062,-620.0,0.00016056,2]
[395299222,1764597042071,-500.0,0.00016056,2]
[395299224,1764597042080,-500.0,0.00016056,2]
[395299226,1764597042089,-500.0,0.00016056,2]
[395299228,1764597042098,-500.0,0.00016056,2]
[395299230,1764597042107,-500.0,0.00016056,2]
[395299232,1764597042116,-500.0,0.00016056,2]
[395299234,1764597042125,-500.0,0.00016056,2]
[395299236,1764597042134,-2500.0,0.00016056,2]
[395299238,1764597042143,-500.0,0.00016056,2]
[395299240,1764597042152,-2500.0,0.00016056,2]
[395299242,1764597042162,-500.0,0.00016056,2]
[395299244,1764597042172,-1000.0,0.00016056,2]
[395299246,1764597042181,-500.0,0.00016056,2]
[395299248,1764597042190,-500.0,0.00016056,2]
[395299250,1764597042200,-500.0,0.00016056,2]
[395299252,1764597042209,-1000.0,0.00016056,2]
[395299254,1764597042218,-1500.0,0.00016056,2]
[395299256,1764597042227,-612.40609192,0.00016056,2]
[395299258,1764597042237,-1000.0,0.00016056,2]
[395299260,1764597042246,-1000.0,0.00016056,2]
[395299262,1764597042256,-1522.79283927,0.00016056,2]
[395299264,1764597042267,-151.0,0.00016056,2]
[395299266,1764597042276,-1000.0,0.00016056,2]
[395299268,1764597042285,-1000.0,0.00016056,2]
[395299270,1764597042294,-544.08822076,0.00016056,2]
[395299272,1764597042303,-1124.09543933,0.00016056,2]
[395299274,1764597042312,-1000.0,0.00016056,2]
[395299277,1764597042321,-1000.0,0.00016056,2]
[395299281,1764597042330,-6000.0,0.00016056,2]
[395299284,1764597042344,-311.1,0.00016056,2]
[395299287,1764597042352,-300.0,0.00016056,2]
[395299290,1764597042362,-248.71531821,0.00016056,2]
[395299293,1764597042371,-578.20924308,0.00016056,2]
[395299297,1764597042382,-150.0,0.00016056,2]
[395299300,1764597042401,-150.0,0.00016062,2]
[395299302,1764597042410,-150.0,0.0001608,2]
[395299304,1764597042424,-150.0,0.0001608,2]
[395299306,1764597042433,-150.0,0.0001608,2]
[395299308,1764597042442,-150.0,0.0001608,2]
[395299310,1764597042452,-150.0,0.00016083,2]
[395299312,1764597042461,-150.0,0.00016084,2]
[395299315,1764597042470,-150.0,0.0001609,2]
[395299318,1764597042480,-150.0,0.00016097,2]
[395299320,1764597042490,-500.0,0.00016099,2]
[395299322,1764597042499,-500.0,0.00016099,2]
[395299324,1764597042508,-432.3661555,0.00016099,2]
[395299327,1764597042517,-500.0,0.00016099,2]
[395299331,1764597042527,-500.0,0.00016099,2]
[395299333,1764597042537,-500.0,0.00016099,2]
[395299335,1764597042547,-500.0,0.00016099,2]
[395299337,1764597042557,-500.0,0.00016099,2]
[395299339,1764597042567,-1281.06890793,0.00016104,2]
[395299341,1764597042577,-150.0,0.00016105,2]
[395299343,1764597042587,-150.0,0.00016109,2]
[395299345,1764597042596,-1064.01,0.0001611,2]
[395299347,1764597042606,-1004.4,0.00016116,2]
[395299349,1764597042616,-150.0,0.00016126,2]
[395299351,1764597042625,-150.0,0.00016137,2]
[395299353,1764597042635,-150.0,0.00016137,2]
[395299355,1764597042645,-150.0,0.00016137,2]
[395299358,1764597042655,-150.0,0.00016137,2]
[395299360,1764597042664,-150.0,0.00016137,2]
[395299362,1764597042674,-150.0,0.00016137,2]
[395299364,1764597042684,-150.0,0.00016137,2]
[395299366,1764597042693,-150.0,0.00016137,2]
[395299368,1764597042703,-150.0,0.00016148,2]
[395299370,1764597042712,-8350.85611252,0.00016153,2]
[395299372,1764597042728,-278.01013964,0.00016153,2]
[395299374,1764597042737,-150.0,0.00016165,2]
[395299377,1764597042747,-150.0,0.00016169,2]
[395299379,1764597042756,-150.0,0.00016177,2]
[395299381,1764597042765,-150.0,0.00016184,2]
[395299383,1764597042775,-150.0,0.0001619,2]
[395299385,1764597042784,-150.0,0.00016191,2]
[395299387,1764597042793,-150.0,0.00016194,2]
[395299389,1764597042803,-150.0,0.00016194,2]
[395299391,1764597042812,-150.0,0.00016194,2]
[395299393,1764597042822,-150.0,0.00016194,2]
[395299395,1764597042831,-13.01911441,0.00016204,2]
[395299401,1764597042878,-1268.04979352,0.00016204,2]
[395299403,1764597042887,-150.0,0.00016212,2]
[395299405,1764597042897,-150.0,0.00016218,2]
[395299407,1764597042907,-150.0,0.00016222,2]
[395299409,1764597042917,-150.0,0.00016231,2]
[395299411,1764597042927,-150.0,0.00016231,2]
[395299413,1764597042936,-150.0,0.00016234,2]
[395299415,1764597042946,-150.0,0.00016243,2]
[395299417,1764597042955,-150.0,0.0001625,2]
[395299419,1764597042964,-150.0,0.0001625,2]
[395299421,1764597042974,-420.0,0.00016251,2]
[395299424,1764597042984,-1680.0,0.00016252,2]
[395299426,1764597042993,-150.0,0.00016255,2]
[395299428,1764597043003,-150.0,0.00016258,2]
[395299430,1764597043012,-150.0,0.00016277,2]
[395299432,1764597043022,-8628.86625216,0.00016277,2]
[395299434,1764597043031,-150.0,0.00016279,2]
[395299436,1764597043040,-150.0,0.00016279,2]
[395299438,1764597043050,-250.72,0.00016287,2]
[395299440,1764597043059,-150.0,0.00016296,2]
[395299442,1764597043069,-150.0,0.00016298,2]
[395299444,1764597043079,-150.0,0.00016299,2]
[395299446,1764597043088,-1281.06890793,0.00016303,2]
[395299448,1764597043098,-150.0,0.00016307,2]
[395299450,1764597043107,-150.0,0.00016307,2]
[395299452,1764597043116,-150.0,0.00016307,2]
[395299454,1764597043126,-150.0,0.00016307,2]
[395299456,1764597043135,-150.0,0.00016307,2]
[395299458,1764597043144,-150.0,0.0001632,2]
[395299460,1764597043154,-150.0,0.00016326,2]
[395299462,1764597043163,-150.0,0.00016335,2]
[395299464,1764597043173,-1000.0,0.00016338,2]
[395299466,1764597043183,-8071.4597,0.00016338,2]
[395299468,1764597043191,-150.0,0.00016339,2]
[395299470,1764597043202,-150.0,0.00016341,2]
[395299472,1764597043211,-150.0,0.00016349,2]
[395299474,1764597043220,-150.0,0.00016363,2]
[395299476,1764597043230,-150.0,0.00016363,2]
[395299478,1764597043238,-150.0,0.00016363,2]
[395299480,1764597043247,-150.0,0.00016373,2]
[395299482,1764597043256,-150.0,0.0001638,2]
[395299484,1764597043266,-1064.01,0.00016384,2]
[395299486,1764597043275,-150.0,0.00016384,2]
[395299488,1764597043284,-150.0,0.00016392,2]
[395299490,1764597043294,-8628.86625216,0.00016402,2]
[395299492,1764597043303,-150.0,0.00016402,2]
[395299494,1764597043312,-1281.06890793,0.00016403,2]
[395299496,1764597043321,-150.0,0.00016406,2]
[395299499,1764597043331,-150.0,0.0001642,2]
[395299501,1764597043344,-150.0,0.0001642,2]
[395299503,1764597043353,-150.0,0.0001642,2]
[395299505,1764597043362,-150.0,0.0001642,2]
[395299507,1764597043371,-150.0,0.0001642,2]
[395299509,1764597043380,-150.0,0.0001642,2]
[395299511,1764597043391,-150.0,0.0001642,2]
[395299513,1764597043400,-150.0,0.0001642,2]
[395299515,1764597043409,-150.0,0.00016427,2]
[395299516,1764597043419,-500.0,0.00016437,2]
[395299518,1764597043429,-744.2,0.00016437,2]
[395299520,1764597043438,-500.0,0.00016437,2]
[395299522,1764597043447,-500.0,0.00016437,2]
[395299524,1764597043458,-500.0,0.00016437,2]
[395299527,1764597043467,-500.0,0.00016437,2]
[395299529,1764597043478,-500.0,0.00016437,2]
[395299530,1764597043487,-500.0,0.00016437,2]
[395299532,1764597043496,-500.0,0.00016437,2]
[395299534,1764597043506,-639.66251844,0.00016437,2]
[395299536,1764597043515,-500.0,0.00016437,2]
[395299539,1764597043527,-500.0,0.00016437,2]
[395299540,1764597043547,-500.0,0.00016437,2]
[395299542,1764597043558,-500.0,0.00016437,2]
[395299544,1764597043568,-500.0,0.00016437,2]
[395299546,1764597043578,-500.0,0.00016437,2]
[395299548,1764597043587,-731.67640305,0.00016438,2]
[395299550,1764597043596,-500.0,0.00016438,2]
[395299552,1764597043606,-500.0,0.00016438,2]
[395299554,1764597043615,-500.0,0.00016438,2]
[395299556,1764597043626,-500.0,0.00016438,2]
[395299558,1764597043635,-595.98699009,0.00016438,2]
[395299560,1764597043644,-500.0,0.00016438,2]
[395299562,1764597043654,-500.0,0.00016438,2]
[395299564,1764597043663,-500.0,0.00016438,2]
[395299566,1764597043673,-500.0,0.00016438,2]
[395299568,1764597043682,-500.0,0.00016438,2]
[395299570,1764597043691,-500.0,0.00016438,2]
[395299573,1764597043700,-500.0,0.00016438,2]
[395299575,1764597043709,-500.0,0.00016438,2]
[395299577,1764597043718,-500.0,0.00016438,2]
[395299579,1764597043728,-500.0,0.00016438,2]
[395299581,1764597043737,-500.0,0.00016438,2]
[395299583,1764597043747,-500.0,0.00016438,2]
[395299585,1764597043757,-500.0,0.00016438,2]
[395299587,1764597043767,-500.0,0.00016438,2]
[395299589,1764597043776,-500.0,0.00016438,2]
[395299591,1764597043785,-500.0,0.00016438,2]
[395299593,1764597043794,-500.0,0.00016438,2]
[395299595,1764597043803,-500.0,0.00016438,2]
[395299597,1764597043812,-225.2,0.00016438,2]
[395299599,1764597043821,-10792.87,0.00016438,2]
[395299601,1764597043831,-150.0,0.00016448,2]
[395299603,1764597043840,-150.0,0.00016449,2]
[395299605,1764597043849,-150.0,0.00016455,2]
[395299607,1764597043859,-150.0,0.00016461,2]
[395299609,1764597043869,-150.0,0.00016467,2]
[395299611,1764597043879,-150.0,0.0001647,2]
[395299613,1764597043889,-150.0,0.00016477,2]
[395299615,1764597043899,-150.0,0.00016477,2]
[395299617,1764597043908,-150.0,0.00016477,2]
[395299619,1764597043918,-150.0,0.00016492,2]
[395299621,1764597043927,-150.0,0.00016501,2]
[395299623,1764597043936,-1281.06890793,0.00016502,2]
[395299625,1764597043946,-150.0,0.00016505,2]
[395299627,1764597043955,-150.0,0.00016509,2]
[395299629,1764597043964,-297.34550459,0.00016511,2]
[395299631,1764597043974,-200.0,0.00016511,2]
[395299633,1764597043983,-500.0,0.00016511,2]
[395299635,1764597043993,-150.0,0.00016513,2]
[395299637,1764597044002,-150.0,0.00016514,2]
[395299639,1764597044012,-1000.0,0.00016521,2]
[395299641,1764597044021,-1000.0,0.00016521,2]
[395299643,1764597044031,-1000.0,0.00016521,2]
[395299645,1764597044041,-1000.0,0.00016521,2]
[395299647,1764597044051,-1000.0,0.00016521,2]
[395299649,1764597044061,-1000.0,0.00016521,2]
[395299651,1764597044070,-1000.0,0.00016521,2]
[395299653,1764597044080,-1000.0,0.00016521,2]
[395299655,1764597044090,-1000.0,0.00016521,2]
[395299657,1764597044100,-503.91137404,0.00016521,2]
[395299659,1764597044110,-507.04514644,0.00016521,2]
[395299661,1764597044120,-1000.0,0.00016521,2]
[395299663,1764597044130,-1000.0,0.00016521,2]
[395299665,1764597044140,-500.70186377,0.00016521,2]
[395299667,1764597044150,-849.22952839,0.00016521,2]
[395299670,1764597044159,-500.0,0.00016521,2]
[395299672,1764597044170,-150.0,0.00016533,2]
[395299673,1764597044179,-150.0,0.00016533,2]
[395299675,1764597044188,-150.0,0.00016533,2]
[395299677,1764597044198,-150.0,0.00016533,2]
[395299679,1764597044208,-150.0,0.00016535,2]
[395299681,1764597044217,-150.0,0.00016541,2]
[395299683,1764597044226,-150.0,0.00016556,2]
[395299685,1764597044235,-150.0,0.00016562,2]
[395299687,1764597044246,-150.0,0.00016562,2]
[395299689,1764597044255,-150.0,0.00016562,2]
[395299691,1764597044264,-150.0,0.00016562,2]
[395299693,1764597044273,-150.0,0.00016578,2]
[395299695,1764597044282,-150.0,0.00016582,2]
[395299697,1764597044292,-150.0,0.0001659,2]
[395299699,1764597044301,-150.0,0.0001659,2]
[395299701,1764597044310,-1814.66,0.00016592,2]
[395299703,1764597044319,-169.265,0.00016592,2]
[395299705,1764597044328,-150.0,0.00016599,2]
[395299707,1764597044345,-1281.06890793,0.00016602,2]
[395299709,1764597044359,-151.0,0.00016604,2]
[395299711,1764597044369,-533.88981491,0.00016604,2]
[395299713,1764597044380,-689.66878,0.00016604,2]
[395299715,1764597044393,-150.0,0.00016609,2]
[395299717,1764597044402,-150.0,0.00016609,2]
[395299719,1764597044411,-150.0,0.00016615,2]
[395299721,1764597044422,-150.0,0.00016618,2]
[395299723,1764597044431,-150.0,0.00016621,2]
[395299726,1764597044442,-150.0,0.00016622,2]
[395299727,1764597044451,-167.15,0.00016628,2]
[395299729,1764597044460,-150.0,0.00016642,2]
[395299731,1764597044470,-150.0,0.00016647,2]
[395299734,1764597044479,-150.0,0.00016647,2]
[395299735,1764597044488,-150.0,0.00016647,2]
[395299738,1764597044498,-150.0,0.00016647,2]
[395299739,1764597044506,-150.0,0.00016647,2]
[395299740,1764597044516,-150.0,0.00016656,2]
[395299741,1764597044524,-1064.01,0.00016658,2]
[395299742,1764597044533,-2808.776524,0.0001666,2]
[395299743,1764597044542,-150.0,0.00016663,2]
[395299744,1764597044551,-150.0,0.00016664,2]
[395299745,1764597044560,-150.0,0.00016668,2]
[395299746,1764597044570,-1443.14,0.00016671,2]
[395299747,1764597044579,-427.45964135,0.00016673,2]
[395299748,1764597044589,-150.0,0.00016675,2]
[395299749,1764597044598,-167.15,0.00016675,2]
[395299750,1764597044607,-150.0,0.00016685,2]
[395299751,1764597044617,-1000.0,0.000167,2]
[395299752,1764597044626,-1281.06890793,0.00016701,2]